bitfinex/quotes_SOLUSD_20240604
["timestamp","ask_amount","ask_price","bid_price","bid_amount"]
[1717503346644,2.2335,165.66,165.64,7.02]
[1717503347278,11.1655,165.69,165.65,7.02]
[1717503347484,2.2336,165.66,165.65,7.02]
[1717503347663,2.2336,165.66,165.62,51.6598]
[1717503347857,2.2336,165.66,165.64,7.02]
[1717503349067,2.2336,165.66,165.62,45.0]
[1717503349269,11.1655,165.69,165.6,28.08]
[1717503349270,2.2336,165.65,165.6,8.5521]
[1717503349565,2.2336,165.65,165.6,36.6321]
[1717503349887,2.2336,165.65,165.64,7.02]
[1717503350270,2.2335,165.66,165.6,36.6321]
[1717503350591,2.2335,165.66,165.64,7.02]
[1717503351097,2.2335,165.66,165.6,36.6321]
[1717503351270,2.2336,165.65,165.64,7.02]
[1717503351672,2.2336,165.65,165.6,8.5521]
[1717503351975,2.2336,165.65,165.63,7.02]
[1717503353205,2.2336,165.65,165.6,8.5521]
[1717503353670,2.2336,165.65,165.63,7.02]
[1717503354288,2.2336,165.65,165.62,7.02]
[1717503354692,2.2336,165.65,165.59,2.2343]
[1717503354874,2.2336,165.65,165.62,7.02]
[1717503355301,11.4865,165.68,165.56,6.5517]
[1717503355302,2.2338,165.64,165.56,6.5517]
[1717503355505,2.2338,165.64,165.61,7.02]
[1717503355690,2.2338,165.64,165.62,7.02]
[1717503356880,2.2338,165.63,165.58,2.2345]
[1717503357083,2.2338,165.63,165.61,7.02]
[1717503357976,2.2338,165.63,165.58,2.2345]
[1717503358178,2.234,165.62,165.57,2.2346]
[1717503358485,2.2339,165.63,165.6,7.02]
[1717503358689,2.2339,165.63,165.58,2.2345]
[1717503359004,2.2339,165.63,165.6,7.02]
[1717503359178,2.2339,165.63,165.58,2.2345]
[1717503359497,2.2339,165.63,165.6,7.02]
[1717503359671,2.2339,165.63,165.58,2.2345]
[1717503359876,2.2339,165.63,165.6,7.02]
[1717503360303,4.4667,165.67,165.62,7.02]
[1717503360606,2.2336,165.65,165.63,7.02]
[1717503360772,2.2336,165.65,165.64,7.02]
[1717503362204,2.2337,165.64,165.58,2.2345]
[1717503362611,2.2339,165.63,165.62,7.02]
[1717503362782,2.2339,165.63,165.58,2.2345]
[1717503362989,2.2339,165.63,165.61,7.02]
[1717503363293,2.2339,165.63,165.58,2.2345]
[1717503363502,2.2339,165.63,165.61,7.02]
[1717503364303,2.2339,165.63,165.57,2.2346]
[1717503364514,2.2339,165.63,165.61,7.02]
[1717503364681,2.234,165.62,165.61,7.02]
[1717503365186,2.2339,165.63,165.61,7.02]
[1717503367102,2.2337,165.64,165.62,7.02]
[1717503367305,2.2337,165.64,165.63,7.02]
[1717503367805,4.4665,165.68,165.63,7.02]
[1717503368008,4.4665,165.68,165.6,9.2541]
[1717503368206,2.2336,165.65,165.6,15.7144]
[1717503368515,2.2336,165.65,165.64,7.02]
[1717503368803,2.2337,165.64,165.63,7.02]
[1717503370915,2.2336,165.65,165.63,7.02]
[1717503373423,11.1662,165.68,165.63,7.02]
[1717503373424,2.2337,165.64,165.63,7.02]
[1717503373609,2.2337,165.64,165.58,2.2345]
[1717503373793,2.2337,165.64,165.62,7.02]
[1717503374291,2.2337,165.64,165.61,7.02]
[1717503374710,2.2337,165.64,165.56,10.9784]
[1717503374910,2.2337,165.64,165.61,7.02]
[1717503375601,2.2336,165.65,165.62,7.02]
[1717503376088,2.2336,165.65,165.63,7.02]
[1717503377022,2.2333,165.67,165.64,7.02]
[1717503377223,2.2333,165.67,165.66,7.02]
[1717503377387,15.6317,165.69,165.6,9.2542]
[1717503377581,2.2336,165.65,165.64,7.02]
[1717503378209,2.2336,165.65,165.63,7.02]
[1717503380306,2.2337,165.64,165.62,7.02]
[1717503380693,2.2336,165.65,165.63,7.02]
[1717503382410,2.2336,165.65,165.64,7.02]
[1717503387217,2.2337,165.64,165.6,28.08]
[1717503387423,2.2337,165.64,165.61,45.0]
[1717503388130,2.2339,165.63,165.61,45.0]
[1717503388303,2.2339,165.63,165.62,7.02]
[1717503388497,2.2339,165.63,165.61,7.02]
[1717503389429,2.2338,165.64,165.61,7.02]
[1717503389605,2.2338,165.64,165.62,7.02]
[1717503389798,2.2338,165.64,165.59,2.2344]
[1717503389799,2.2336,165.65,165.63,7.02]
[1717503389996,2.2335,165.66,165.64,7.02]
[1717503390202,2.2335,165.66,165.65,7.02]
[1717503391937,2.2335,165.66,165.64,7.02]
[1717503392608,2.2336,165.65,165.64,7.02]
[1717503396427,2.2337,165.64,165.61,45.0]
[1717503396731,2.2337,165.64,165.59,8.4118]
[1717503396923,2.2337,165.64,165.62,7.02]
[1717503397241,2.2339,165.63,165.59,6.1775]
[1717503397406,2.2339,165.63,165.58,2.2344]
[1717503397614,2.2339,165.63,165.61,7.02]
[1717503398134,2.2338,165.64,165.58,2.2344]
[1717503398314,2.2338,165.64,165.61,7.02]
[1717503398655,2.2338,165.64,165.59,2.2344]
[1717503398932,2.2338,165.64,165.6,7.02]
[1717503399634,2.2339,165.63,165.61,7.02]
[1717503400351,2.2341,165.62,165.55,21.9392]
[1717503400520,2.2341,165.62,165.59,7.02]
[1717503400722,2.2341,165.62,165.55,6.5089]
[1717503400934,2.2341,165.62,165.59,7.02]
[1717503401150,2.2341,165.62,165.55,6.5089]
[1717503401431,2.2342,165.61,165.55,8.7438]
[1717503401639,2.2342,165.61,165.58,7.02]
[1717503401868,2.2343,165.6,165.57,7.02]
[1717503402346,2.2343,165.6,165.56,7.02]
[1717503403260,2.2343,165.6,165.57,7.02]
[1717503405758,2.2343,165.6,165.54,2.235]
[1717503405929,2.2343,165.6,165.57,7.02]
[1717503408354,2.2344,165.59,165.57,7.02]
[1717503408667,2.2344,165.59,165.53,45.0]
[1717503408827,2.2346,165.58,165.56,7.02]
[1717503409033,2.2346,165.58,165.51,6.0737]
[1717503409343,2.2346,165.58,165.54,7.02]
[1717503409831,2.2347,165.57,165.54,7.02]
[1717503410036,2.2346,165.58,165.54,7.02]
[1717503410238,11.4888,165.59,165.51,8.3091]
[1717503410443,11.4888,165.59,165.53,7.02]
[1717503410863,11.4888,165.59,165.54,7.02]
[1717503410864,4.4688,165.59,165.54,7.02]
[1717503411246,2.2348,165.56,165.54,7.02]
[1717503411560,2.2348,165.56,165.51,2.2354]
[1717503411742,2.2348,165.56,165.54,7.02]
[1717503411942,2.2347,165.57,165.54,7.02]
[1717503412163,2.2347,165.57,165.51,2.2354]
[1717503412461,2.2347,165.57,165.55,7.02]
[1717503415159,2.2348,165.56,165.55,7.02]
[1717503415580,2.2348,165.56,165.51,2.2354]
[1717503415785,2.2348,165.56,165.55,7.02]
[1717503417382,2.2347,165.57,165.55,7.02]
[1717503417666,2.2341,165.61,165.56,7.02]
[1717503417846,4.4679,165.63,165.59,7.02]
[1717503418041,2.2342,165.6,165.59,7.02]
[1717503419862,2.2344,165.59,165.54,2.235]
[1717503420065,2.2344,165.59,165.57,7.02]
[1717503421070,2.2344,165.59,165.54,2.2351]
[1717503421458,2.2344,165.59,165.57,7.02]
[1717503421651,2.2344,165.59,165.54,2.2351]
[1717503421963,2.2344,165.59,165.57,7.02]
[1717503422167,2.2344,165.59,165.58,7.02]
[1717503422352,2.2344,165.59,165.54,2.2351]
[1717503422669,2.2344,165.59,165.57,7.02]
[1717503423375,2.2344,165.59,165.56,7.02]
[1717503423574,7.02,165.62,165.53,45.0]
[1717503423759,2.2348,165.57,165.55,7.02]
[1717503425254,2.2348,165.57,165.56,7.02]
[1717503425453,2.2346,165.58,165.56,7.02]
[1717503425973,2.2344,165.59,165.54,2.2351]
[1717503426571,2.2344,165.59,165.54,8.5346]
[1717503426778,2.2344,165.59,165.58,7.02]
[1717503428373,2.2345,165.58,165.57,7.02]
[1717503428860,2.2347,165.57,165.53,45.0]
[1717503429058,2.2347,165.57,165.55,7.02]
[1717503429456,2.2347,165.57,165.54,7.02]
[1717503429756,2.2347,165.57,165.53,45.0]
[1717503430071,7.02,165.6,165.53,45.0]
[1717503430072,2.2348,165.56,165.53,45.0]
[1717503430274,2.2349,165.55,165.5,8.5225]
[1717503430498,2.2349,165.55,165.53,7.02]
[1717503430992,2.2349,165.55,165.54,7.02]
[1717503431170,2.2349,165.55,165.51,45.0]
[1717503431694,2.2349,165.55,165.53,7.02]
[1717503432299,2.2349,165.55,165.52,7.02]
[1717503433485,2.2349,165.55,165.51,45.0]
[1717503433786,2.2349,165.55,165.52,7.02]
[1717503435155,2.2351,165.54,165.52,7.02]
[1717503437777,2.2351,165.54,165.48,2.2358]
[1717503437963,2.2351,165.54,165.51,7.02]
[1717503439468,2.2352,165.53,165.51,7.02]
[1717503440804,2.2351,165.54,165.51,7.02]
[1717503441987,2.2352,165.53,165.51,7.02]
[1717503442897,2.2351,165.54,165.51,7.02]
[1717503445802,2.2351,165.54,165.51,7.02]
[1717503446510,2.2352,165.53,165.51,7.02]
[1717503447185,2.2352,165.53,165.5,7.02]
[1717503450302,2.2352,165.53,165.51,7.02]
[1717503450998,4.4701,165.55,165.47,45.0]
[1717503451217,11.1751,165.55,165.5,7.02]
[1717503451704,2.2354,165.52,165.5,7.02]
[1717503463312,2.2354,165.52,165.47,2.236]
[1717503463506,2.2354,165.52,165.47,47.236]
[1717503463723,2.2354,165.52,165.5,7.02]
[1717503466018,2.2354,165.52,165.47,47.236]
[1717503466240,2.2354,165.52,165.5,7.02]
[1717503467993,2.2354,165.52,165.51,7.02]
[1717503468912,2.2353,165.53,165.51,7.02]
[1717503469100,2.2353,165.53,165.52,7.02]
[1717503470807,2.2353,165.53,165.48,8.7163]
[1717503471012,2.2353,165.52,165.49,45.0]
[1717503471214,2.2353,165.52,165.51,7.02]
[1717503480530,2.2355,165.51,165.49,45.0]
[1717503480714,2.2355,165.51,165.5,7.02]
[1717503481342,2.2355,165.51,165.49,45.0]
[1717503481525,2.2355,165.51,165.5,7.02]
[1717503482821,2.2355,165.51,165.49,45.0]
[1717503483122,2.2355,165.51,165.5,7.02]
[1717503484039,2.2355,165.51,165.49,45.0]
[1717503484239,2.2355,165.51,165.5,7.02]
[1717503485245,2.2354,165.52,165.5,7.02]
[1717503485536,2.2354,165.52,165.51,7.02]
[1717503487929,2.2352,165.53,165.51,7.02]
[1717503488132,2.2352,165.53,165.52,7.02]
[1717503489214,4.4692,165.58,165.52,7.02]
[1717503489417,2.2347,165.58,165.56,7.02]
[1717503489750,2.2347,165.58,165.57,7.02]
[1717503491119,4.4684,165.61,165.57,7.02]
[1717503491421,2.2344,165.59,165.57,7.02]
[1717503491843,2.2344,165.59,165.58,7.02]
[1717503492747,2.2343,165.6,165.58,7.02]
[1717503492962,2.2343,165.6,165.53,22.4536]
[1717503492963,11.1677,165.66,165.59,8.22512668]
[1717503493113,2.2337,165.65,165.6,58.4299]
[1717503493317,2.2337,165.65,165.64,7.02]
[1717503493718,4.4665,165.68,165.64,7.02]
[1717503493719,2.2335,165.66,165.64,7.02]
[1717503494120,2.2335,165.66,165.65,7.02]
[1717503495648,4.4665,165.68,165.65,52.02]
[1717503495649,2.2332,165.68,165.65,52.02]
[1717503495856,2.233,165.7,165.67,7.02]
[1717503496049,2.233,165.7,165.69,7.02]
[1717503496246,20.0921,165.74,165.69,7.02]
[1717503496431,20.0921,165.74,165.71,7.02]
[1717503496831,2.2328,165.71,165.68,13.5928]
[1717503497050,2.2328,165.71,165.7,7.02]
[1717503497349,2.2327,165.72,165.7,7.02]
[1717503497646,2.2327,165.72,165.71,52.02]
[1717503499437,4.4648,165.74,165.68,6.5728]
[1717503499749,2.2329,165.71,165.69,45.0]
[1717503499930,2.2329,165.71,165.7,7.02]
[1717503500129,2.2329,165.71,165.7,52.02]
[1717503501057,2.2326,165.73,165.7,52.02]
[1717503501230,2.2326,165.73,165.71,45.0]
[1717503501433,2.2326,165.73,165.72,7.02]
[1717503501740,2.2321,165.76,165.73,6.1951]
[1717503501945,2.2321,165.76,165.75,7.02]
[1717503502127,4.4632,165.8,165.75,7.02]
[1717503502324,4.4632,165.8,165.78,7.02]
[1717503502529,2.232,165.77,165.73,6.1951]
[1717503502728,2.232,165.77,165.76,7.02]
[1717503503438,2.232,165.77,165.74,6.326]
[1717503503642,2.232,165.77,165.76,7.02]
[1717503503951,2.2322,165.76,165.71,53.5587]
[1717503504149,2.2322,165.76,165.75,7.02]
[1717503504359,2.2322,165.76,165.71,53.5587]
[1717503504560,2.2322,165.76,165.75,7.02]
[1717503504862,2.232,165.77,165.75,7.02]
[1717503505043,2.2321,165.76,165.71,53.5587]
[1717503505237,2.2321,165.76,165.75,7.02]
[1717503505570,2.232,165.77,165.75,7.02]
[1717503505734,2.232,165.77,165.76,7.02]
[1717503511556,2.2318,165.78,165.76,7.02]
[1717503511750,2.2318,165.78,165.73,2.2325]
[1717503511751,2.2318,165.78,165.77,7.02]
[1717503514335,2.2324,165.74,165.71,6.1427]
[1717503514532,2.2324,165.74,165.68,28.08]
[1717503514533,2.2329,165.71,165.68,6.2047]
[1717503514734,4.4648,165.74,165.7,7.02]
[1717503514959,2.2328,165.71,165.68,34.2847]
[1717503515159,2.2328,165.71,165.68,6.2047]
[1717503515362,2.233,165.69,165.65,6.3379]
[1717503515569,4.4657,165.71,165.65,6.3379]
[1717503515777,2.2332,165.68,165.67,7.02]
[1717503516164,2.2334,165.67,165.66,7.02]
[1717503517364,2.2331,165.69,165.66,7.02]
[1717503517547,2.2331,165.69,165.68,7.02]
[1717503518663,2.2332,165.68,165.64,2.11175644]
[1717503518851,2.2332,165.68,165.64,51.1523]
[1717503519073,8.9316,165.71,165.64,45.0]
[1717503519278,2.2335,165.66,165.65,7.02]
[1717503519451,11.165,165.7,165.6,6.2893]
[1717503519452,2.2336,165.65,165.6,6.2893]
[1717503519652,2.2336,165.65,165.63,7.02]
[1717503520184,2.2335,165.66,165.64,7.02]
[1717503520551,2.2335,165.66,165.65,7.02]
[1717503522251,2.2336,165.65,165.64,7.02]
[1717503522855,2.2336,165.65,165.6,36.9322]
[1717503523054,2.2336,165.65,165.64,7.02]
[1717503523672,2.2335,165.66,165.64,7.02]
[1717503523855,2.2335,165.66,165.65,7.02]
[1717503524051,2.2334,165.67,165.65,7.02]
[1717503525774,15.6303,165.71,165.61,45.0]
[1717503525775,4.4657,165.71,165.66,7.02]
[1717503525980,4.4657,165.71,165.61,45.0]
[1717503525981,2.2331,165.69,165.68,7.02]
[1717503529352,2.2328,165.71,165.68,52.02]
[1717503529557,2.2328,165.71,165.7,7.02]
[1717503530478,2.2328,165.71,165.7,52.02]
[1717503531380,2.2328,165.71,165.7,7.02]
[1717503532064,2.2327,165.72,165.7,7.02]
[1717503532389,2.2327,165.72,165.71,7.02]
[1717503532957,6.26439185,165.76,165.71,7.02]
[1717503533151,2.2324,165.75,165.69,8.5692]
[1717503533469,2.2322,165.75,165.74,7.02]
[1717503535094,4.4641,165.77,165.7,45.0]
[1717503535377,2.2325,165.73,165.7,51.4763]
[1717503535696,2.2325,165.73,165.72,7.02]
[1717503535855,2.2325,165.73,165.72,52.02]
[1717503536174,2.2325,165.73,165.68,22.9777]
[1717503536373,2.2325,165.73,165.72,7.02]
[1717503537289,2.2324,165.74,165.72,7.02]
[1717503537580,2.2324,165.74,165.73,7.02]
[1717503537981,2.2323,165.75,165.73,7.02]
[1717503538156,2.232,165.77,165.74,7.02]
[1717503538355,2.232,165.77,165.76,7.02]
[1717503540478,2.2322,165.76,165.71,8.6494]
[1717503540658,4.4635,165.79,165.72,51.3942]
[1717503540969,2.2321,165.76,165.75,7.02]
[1717503541960,2.2325,165.74,165.69,8.5888]
[1717503542282,2.2325,165.74,165.73,7.02]
[1717503544076,2.2323,165.75,165.73,7.02]
[1717503545190,2.2323,165.75,165.74,7.02]
[1717503546323,2.2321,165.76,165.74,7.02]
[1717503546461,2.2321,165.76,165.75,7.02]
[1717503546667,2.232,165.77,165.75,7.02]
[1717503546873,2.232,165.77,165.76,7.02]
[1717503547668,8.9263,165.81,165.76,7.02]
[1717503547669,13.3892,165.81,165.76,7.02]
[1717503547989,2.2318,165.79,165.78,7.02]
[1717503548809,2.2318,165.78,165.77,7.02]
[1717503551674,2.2317,165.79,165.77,7.02]
[1717503551992,2.2317,165.79,165.78,7.02]
[1717503556392,2.2316,165.8,165.78,7.02]
[1717503556683,2.2316,165.8,165.79,7.02]
[1717503559888,2.2315,165.81,165.79,7.02]
[1717503560081,2.2314,165.82,165.8,7.02]
[1717503560280,2.2313,165.82,165.81,7.02]
[1717503561397,2.2315,165.81,165.8,7.02]
[1717503563106,6.03036812,165.84,165.8,7.02]
[1717503563107,2.2313,165.82,165.8,7.02]
[1717503563275,2.2313,165.82,165.81,7.02]
[1717503563896,2.2314,165.81,165.78,6.1962]
[1717503564208,2.2314,165.81,165.8,7.02]
[1717503565112,0.23172,165.84,165.8,7.02]
[1717503565113,2.2314,165.82,165.8,7.02]
[1717503565280,2.2315,165.81,165.79,45.0]
[1717503565488,2.2315,165.81,165.8,7.02]
[1717503567413,2.2313,165.82,165.8,7.02]
[1717503567631,2.2313,165.82,165.81,7.02]
[1717503571907,0.23172,165.84,165.81,7.02]
[1717503572099,2.2312,165.83,165.82,7.02]
[1717503573732,2.2314,165.82,165.79,45.0]
[1717503574032,2.2314,165.82,165.81,7.02]
[1717503578222,2.2316,165.8,165.75,2.2322]
[1717503578428,2.2316,165.8,165.75,8.637]
[1717503578726,2.2314,165.82,165.79,7.02]
[1717503578966,2.2314,165.82,165.81,7.02]
[1717503585658,2.2314,165.82,165.81,52.02]
[1717503588449,2.2314,165.82,165.81,45.0]
[1717503589639,2.2314,165.82,165.81,52.02]
[1717503589836,2.2312,165.83,165.81,52.02]
[1717503590036,0.23172,165.84,165.81,52.02]
[1717503590037,2.2313,165.82,165.81,52.02]
[1717503590357,2.2313,165.82,165.78,6.4048]
[1717503590667,2.2313,165.82,165.8,7.02]
[1717503594181,2.2313,165.82,165.81,7.02]
[1717503597370,2.2312,165.83,165.81,7.02]
[1717503598385,2.2313,165.82,165.81,7.02]
[1717503598576,0.23172,165.84,165.78,6.4048]
[1717503598769,0.23172,165.84,165.8,7.02]
[1717503598971,2.2314,165.81,165.8,7.02]
[1717503599176,2.2313,165.82,165.8,7.02]
[1717503599478,2.2313,165.82,165.81,7.02]
[1717503600864,0.23172,165.84,165.81,52.02]
[1717503600865,2.46282,165.84,165.81,52.02]
[1717503601089,2.46282,165.84,165.83,7.02]
[1717503601781,0.23172,165.84,165.83,7.02]
[1717503602569,2.46272,165.84,165.83,52.02]
[1717503603088,0.23172,165.84,165.83,52.02]
[1717503603288,2.46272,165.84,165.83,52.02]
[1717503603487,2.2312,165.83,165.79,6.4181]
[1717503603673,2.2312,165.83,165.82,7.02]
[1717503603877,2.2313,165.82,165.8,45.0]
[1717503604082,2.2313,165.82,165.77,8.857]
[1717503604285,2.2312,165.83,165.81,7.02]
[1717503605286,2.46282,165.84,165.82,7.02]
[1717503606997,2.46282,165.84,165.83,7.02]
[1717503608275,0.23172,165.84,165.83,7.02]
[1717503610577,2.46272,165.84,165.83,7.02]
[1717503611487,2.46272,165.84,165.83,52.02]
[1717503617079,2.46272,165.84,165.83,7.02]
[1717503619489,2.46272,165.84,165.82,7.02]
[1717503619490,2.2312,165.83,165.82,7.02]
[1717503619992,2.2313,165.82,165.81,7.02]
[1717503620598,2.2312,165.83,165.81,7.02]
[1717503622121,2.46282,165.84,165.82,7.02]
[1717503622413,2.46282,165.84,165.83,7.02]
[1717503624397,0.23172,165.84,165.83,7.02]
[1717503624696,2.46272,165.84,165.83,52.02]
[1717503625618,0.23172,165.84,165.83,52.02]
[1717503632191,0.23172,165.84,165.83,45.0]
[1717503632387,0.23172,165.84,165.83,52.02]
[1717503632805,0.23172,165.84,165.83,45.0]
[1717503632998,2.2312,165.83,165.79,6.6221]
[1717503633304,0.23172,165.84,165.82,7.02]
[1717503633610,2.46272,165.84,165.83,7.02]
[1717503634310,0.23172,165.84,165.83,7.02]
[1717503634693,0.23172,165.84,165.79,6.6221]
[1717503634883,2.2312,165.83,165.8,45.0]
[1717503635305,2.2312,165.83,165.81,7.02]
[1717503636208,2.2313,165.82,165.8,45.0]
[1717503636623,2.2313,165.82,165.8,52.02]
[1717503637302,2.2314,165.81,165.76,28.08]
[1717503637527,2.2315,165.81,165.79,7.02]
[1717503637997,2.2315,165.81,165.75,2.2322]
[1717503638316,2.2316,165.8,165.78,7.02]
[1717503639192,2.2316,165.8,165.74,2.2323]
[1717503639396,2.2317,165.79,165.74,53.6078]
[1717503639818,2.2317,165.79,165.78,7.02]
[1717503640408,2.2317,165.79,165.74,51.3754]
[1717503640612,2.2318,165.78,165.74,6.3754]
[1717503640805,2.232,165.77,165.71,2.2327]
[1717503641031,7.02,165.8,165.75,7.02]
[1717503641334,2.2319,165.78,165.75,7.02]
[1717503641633,2.2319,165.78,165.71,2.2327]
[1717503641799,2.2319,165.78,165.75,7.02]
[1717503642127,2.232,165.77,165.75,7.02]
[1717503643124,2.2318,165.79,165.75,7.02]
[1717503643423,2.2318,165.79,165.76,7.02]
[1717503643721,2.2319,165.78,165.75,7.02]
[1717503644027,2.232,165.77,165.75,7.02]
[1717503645298,2.232,165.77,165.74,7.02]
[1717503645498,2.232,165.77,165.7,23.9931]
[1717503645810,2.232,165.77,165.75,7.02]
[1717503647623,2.2321,165.76,165.75,7.02]
[1717503648225,2.2321,165.76,165.71,45.0]
[1717503648518,2.2321,165.76,165.75,7.02]
[1717503648897,2.232,165.77,165.75,7.02]
[1717503649235,2.2321,165.76,165.75,7.02]
[1717503649742,2.2321,165.76,165.71,45.0]
[1717503649916,2.2321,165.76,165.74,7.02]
[1717503651005,2.2324,165.74,165.66,21.3058]
[1717503651209,2.2322,165.75,165.71,7.02]
[1717503651824,2.2324,165.74,165.68,2.2331]
[1717503652040,2.2324,165.74,165.71,7.02]
[1717503653006,2.2323,165.75,165.72,7.02]
[1717503653207,2.2322,165.76,165.72,7.02]
[1717503653506,2.2322,165.76,165.73,7.02]
[1717503654201,2.2322,165.75,165.73,7.02]
[1717503654821,2.232,165.77,165.74,7.02]
[1717503655021,2.232,165.77,165.75,7.02]
[1717503655219,2.232,165.77,165.76,7.02]
[1717503657103,7.14815678,165.79,165.76,7.02]
[1717503657309,2.2316,165.8,165.78,7.02]
[1717503657508,2.2316,165.8,165.72,16.3766]
[1717503657509,2.2315,165.81,165.79,7.02]
[1717503658037,2.2316,165.8,165.79,7.02]
[1717503658243,2.2318,165.79,165.78,7.02]
[1717503659021,2.2316,165.8,165.78,7.02]
[1717503659515,2.2316,165.8,165.79,7.02]
[1717503660639,2.2316,165.8,165.78,7.02]
[1717503660827,2.2317,165.79,165.78,7.02]
[1717503661639,2.2319,165.78,165.73,2.2325]
[1717503661819,2.2319,165.78,165.77,7.02]
[1717503663221,2.2319,165.78,165.73,6.5085]
[1717503663438,2.2319,165.78,165.74,45.0]
[1717503663736,2.2319,165.78,165.76,7.02]
[1717503665026,2.2317,165.79,165.76,7.02]
[1717503665226,11.483,165.81,165.74,45.0]
[1717503665535,2.2321,165.76,165.75,7.02]
[1717503665735,2.2321,165.76,165.7,2.2328]
[1717503665736,2.2323,165.75,165.73,7.02]
[1717503665913,2.232,165.77,165.71,2.2327]
[1717503666109,2.232,165.77,165.73,7.02]
[1717503666313,2.2321,165.76,165.73,7.02]
[1717503666527,2.2323,165.75,165.73,7.02]
[1717503666745,2.2324,165.74,165.69,8.3762]
[1717503666925,2.2325,165.73,165.72,7.02]
[1717503667113,2.2325,165.73,165.71,7.02]
[1717503668040,2.2325,165.73,165.67,2.2332]
[1717503668217,2.2325,165.73,165.71,7.02]
[1717503668422,2.2324,165.74,165.71,7.02]
[1717503668622,2.2323,165.75,165.71,7.02]
[1717503668931,2.2323,165.75,165.73,7.02]
[1717503671255,2.2323,165.75,165.74,7.02]
[1717503671756,2.232,165.77,165.74,7.02]
[1717503671933,2.232,165.77,165.76,7.02]
[1717503673162,2.2322,165.76,165.7,2.2329]
[1717503673338,2.2322,165.76,165.75,7.02]
[1717503674242,2.2322,165.76,165.71,2.2328]
[1717503674243,2.2322,165.75,165.71,6.21]
[1717503674450,2.2322,165.75,165.72,45.0]
[1717503674622,2.2322,165.75,165.74,7.02]
[1717503675022,2.232,165.77,165.74,52.02]
[1717503675257,2.232,165.77,165.76,7.02]
[1717503675934,2.2321,165.76,165.75,7.02]
[1717503680650,4.4635,165.79,165.75,58.5292]
[1717503680651,2.2318,165.79,165.75,58.5292]
[1717503680849,2.2318,165.79,165.78,7.02]
[1717503681031,13.84205678,165.83,165.78,7.02]
[1717503681032,2.2317,165.8,165.78,7.02]
[1717503681231,2.2317,165.8,165.79,7.02]
[1717503682557,2.2315,165.81,165.79,7.02]
[1717503682745,0.23172,165.84,165.8,7.02]
[1717503682936,0.23172,165.84,165.82,7.02]
[1717503682937,2.2312,165.83,165.82,7.02]
[1717503685157,2.2315,165.81,165.75,25.0405]
[1717503685363,2.2315,165.81,165.8,7.02]
[1717503687861,2.2313,165.82,165.8,7.02]
[1717503688061,0.23172,165.84,165.78,15.9557]